bitfinex-derivatives/quotes_BNBF0:USTF0_20251010
["timestamp","ask_amount","ask_price","bid_price","bid_amount"]
[1760122995661,0.14202951,1226.2,1223.6,0.55004476]
[1760122995864,0.14202951,1226.2,1223.7,0.54979231]
[1760122996162,0.14202951,1226.2,1223.8,0.54979231]
[1760122996362,0.14202951,1226.2,1223.3,0.60600974]
[1760122996565,0.14202951,1226.2,1223.4,0.54968124]
[1760122996765,0.14202951,1226.2,1223.5,0.54968124]
[1760122997065,0.14202951,1226.2,1223.6,0.54968124]
[1760122997264,0.14202951,1226.2,1223.7,0.54968124]
[1760122997563,0.14202951,1226.2,1223.8,0.54968124]
[1760122997762,0.14202951,1226.2,1223.2,0.60600974]
[1760122997966,0.14202951,1226.2,1223.3,0.54959185]
[1760122998167,0.14202951,1226.2,1223.4,0.54959185]
[1760122998467,0.14202951,1226.2,1223.5,0.54959185]
[1760122998671,0.14202951,1226.2,1223.6,0.54959185]
[1760122998874,0.14202951,1226.2,1223.7,0.54959185]
[1760122999075,0.14202951,1226.2,1223.8,0.54959185]
[1760122999271,0.14202951,1226.2,1223.2,0.60600974]
[1760122999470,0.14202951,1226.2,1223.3,0.54938506]
[1760122999771,0.14202951,1226.2,1223.4,0.54938506]
[1760122999970,0.14202951,1226.2,1223.5,0.54938506]
[1760123000271,0.14202951,1226.2,1223.6,0.54938506]
[1760123000571,0.14202951,1226.2,1223.7,0.54938506]
[1760123000772,0.14202951,1226.2,1223.0,0.60600974]
[1760123000974,0.14202951,1226.2,1223.1,0.54937609]
[1760123001172,0.14202951,1226.2,1223.0,0.60600974]
[1760123001173,0.14202951,1226.2,1223.2,0.54937609]
[1760123001376,0.14202951,1226.2,1223.3,0.54937609]
[1760123001675,0.14202951,1226.2,1223.4,0.54937609]
[1760123001872,0.14202951,1226.2,1223.5,0.54937609]
[1760123002072,0.14202951,1226.2,1223.6,0.54937609]
[1760123002274,0.14202951,1226.2,1223.7,0.54937609]
[1760123002473,0.14202951,1226.2,1223.0,0.60600974]
[1760123002679,0.14202951,1226.2,1223.1,0.54916389]
[1760123002876,0.14202951,1226.2,1223.2,0.54916389]
[1760123003176,0.14202951,1226.2,1223.3,0.54916389]
[1760123003378,0.14202951,1226.2,1223.4,0.54916389]
[1760123003679,0.14202951,1226.2,1223.5,0.54916389]
[1760123003973,0.14202951,1226.2,1223.6,0.54916389]
[1760123004174,0.14202951,1226.2,1223.0,0.60600974]
[1760123004376,0.14202951,1226.2,1223.1,0.54900939]
[1760123004574,0.14202951,1226.2,1223.2,0.54900939]
[1760123004777,0.14202951,1226.2,1223.3,0.54900939]
[1760123004978,0.14202951,1226.2,1223.4,0.54900939]
[1760123005178,0.14202951,1226.2,1223.5,0.54900939]
[1760123005378,0.14202951,1226.2,1223.6,0.54900939]
[1760123005578,0.14202951,1226.2,1223.0,0.60600974]
[1760123005777,0.14202951,1226.2,1223.1,1.15496061]
[1760123005980,2.00513214,1226.0,1223.2,0.54895087]
[1760123006176,2.00513214,1226.0,1223.3,0.54895087]
[1760123006380,2.00513214,1226.0,1223.4,0.54895087]
[1760123006677,2.00513214,1226.0,1223.1,0.60600974]
[1760123006878,2.00513214,1226.0,1223.2,0.54888897]
[1760123007183,2.00513214,1226.0,1223.3,0.54888897]
[1760123007382,2.00513214,1226.0,1223.4,0.54888897]
[1760123007582,2.00513214,1226.0,1223.0,0.60600974]
[1760123007783,2.00513214,1226.0,1223.1,0.54883307]
[1760123007983,2.00513214,1225.9,1223.2,0.54883307]
[1760123008179,2.00513214,1225.9,1223.3,0.54883307]
[1760123008378,0.14202951,1226.2,1223.4,0.54883307]
[1760123008582,0.14202951,1226.2,1222.9,0.60600974]
[1760123008880,0.14202951,1226.2,1223.0,0.54879699]
[1760123009085,0.14202951,1226.2,1223.1,0.54879699]
[1760123009379,0.14202951,1226.2,1223.2,0.54879699]
[1760123009584,0.14202951,1226.2,1223.3,0.54879699]
[1760123009885,0.14202951,1226.2,1223.4,0.54879699]
[1760123010082,0.14202951,1226.2,1222.9,0.60600974]
[1760123010383,0.14202951,1226.2,1223.0,0.54872154]
[1760123010586,0.14202951,1226.2,1223.1,0.54872154]
[1760123010886,0.14202951,1226.2,1223.2,0.54872154]
[1760123011081,0.14202951,1226.2,1223.3,0.54872154]
[1760123011280,0.14202951,1226.2,1223.4,0.54872154]
[1760123011484,0.14202951,1226.2,1222.9,0.60600974]
[1760123011683,0.14202951,1226.2,1223.0,0.54868182]
[1760123011887,0.14202951,1226.2,1223.1,0.54868182]
[1760123012181,0.14202951,1226.2,1223.2,0.54868182]
[1760123012384,0.14202951,1226.2,1223.3,0.54868182]
[1760123012582,0.14202951,1226.2,1223.4,0.54868182]
[1760123012786,0.14202951,1226.2,1223.5,0.54868182]
[1760123012985,0.14202951,1226.2,1222.9,0.60600974]
[1760123013188,0.14202951,1226.2,1223.0,0.54867994]
[1760123013388,0.14202951,1226.2,1223.1,0.54867994]
[1760123013584,0.14202951,1226.2,1223.2,0.54867994]
[1760123013787,0.14202951,1226.2,1223.3,0.54867994]
[1760123013984,0.14202951,1226.2,1223.4,0.54867994]
[1760123014188,0.14202951,1226.2,1223.5,0.54867994]
[1760123014486,0.14202951,1226.2,1223.6,0.54867994]
[1760123014688,0.14202951,1226.2,1223.0,0.60600974]
[1760123014884,0.14202951,1226.2,1223.1,0.54865345]
[1760123015090,0.14202951,1226.2,1223.2,0.54865345]
[1760123015289,0.14202951,1226.2,1223.3,0.54865345]
[1760123015489,0.14202951,1226.2,1223.4,0.54865345]
[1760123015690,0.14202951,1226.2,1223.5,0.54865345]
[1760123015891,0.14202951,1226.2,1223.6,0.54865345]
[1760123016093,0.14202951,1226.2,1223.0,0.60600974]
[1760123016391,0.14202951,1226.2,1223.1,0.54861652]
[1760123016589,0.14202951,1226.2,1223.2,0.54861652]
[1760123016790,0.14202951,1226.2,1223.3,0.54861652]
[1760123016991,0.14202951,1226.2,1223.4,0.54861652]
[1760123017194,0.14202951,1226.2,1222.8,0.60600974]
[1760123017495,0.14202951,1226.2,1222.9,0.54858465]
[1760123017689,0.14202951,1226.2,1223.0,0.54858465]
[1760123017892,0.14202951,1226.2,1223.1,0.54858465]
[1760123018093,0.14202951,1226.2,1223.2,0.54858465]
[1760123018294,0.14202951,1226.2,1223.3,0.54858465]
[1760123018495,0.14202951,1226.2,1223.4,0.54858465]
[1760123018695,0.14202951,1226.2,1222.7,0.60600974]
[1760123018895,0.14202951,1226.2,1222.8,0.54858608]
[1760123019093,0.14202951,1226.2,1222.9,0.54858608]
[1760123019298,0.14202951,1226.2,1223.0,0.54858608]
[1760123019492,0.14202951,1226.2,1223.1,0.54858608]
[1760123019792,0.14202951,1226.2,1223.2,0.54858608]
[1760123019996,0.14202951,1226.2,1223.3,0.54858608]
[1760123020194,0.14202951,1226.2,1222.7,0.60600974]
[1760123020393,0.14202951,1226.2,1222.8,0.54852998]
[1760123020598,0.14202951,1226.2,1222.9,0.54852998]
[1760123020898,0.14202951,1226.2,1223.0,0.54852998]
[1760123021094,0.14202951,1226.2,1223.1,0.54852998]
[1760123021298,0.14202951,1226.2,1223.2,0.54852998]
[1760123021494,0.14202951,1226.2,1223.3,0.54852998]
[1760123021696,0.14202951,1226.2,1222.7,0.60600974]
[1760123021901,0.14202951,1226.2,1222.8,0.5485239]
[1760123022100,0.14202951,1226.2,1222.9,0.5485239]
[1760123022297,0.14202951,1226.2,1223.0,0.5485239]
[1760123022597,0.14202951,1226.2,1223.1,0.5485239]
[1760123022798,0.14202951,1226.2,1223.2,0.5485239]
[1760123023000,0.14202951,1226.2,1223.3,0.5485239]
[1760123023199,0.14202951,1226.2,1222.7,0.60600974]
[1760123023403,0.14202951,1226.2,1222.8,0.54855401]
[1760123023599,0.14202951,1226.2,1222.9,0.54855401]
[1760123023898,0.14202951,1226.2,1223.0,0.54855401]
[1760123024099,0.14202951,1226.2,1223.1,0.54855401]
[1760123024298,0.14202951,1226.2,1223.2,0.54855401]
[1760123024602,0.14202951,1226.2,1223.3,0.54855401]
[1760123024802,0.14202951,1226.2,1222.7,0.60600974]
[1760123025000,0.14202951,1226.2,1222.8,0.5485949]
[1760123025306,0.14202951,1226.2,1222.9,0.5485949]
[1760123025599,0.14202951,1226.2,1223.0,0.5485949]
[1760123025804,0.14202951,1226.2,1223.1,0.5485949]
[1760123026001,0.14202951,1226.2,1223.2,0.5485949]
[1760123026200,0.14202951,1226.2,1223.3,0.5485949]
[1760123026400,0.14202951,1226.2,1222.7,0.60600974]
[1760123026600,0.14202951,1226.2,1222.8,0.54867495]
[1760123026902,0.14202951,1226.2,1223.0,0.60600974]
[1760123027101,0.14202951,1226.2,1223.1,0.54867495]
[1760123027300,0.14202951,1226.2,1223.2,0.54867495]
[1760123027503,0.14202951,1226.2,1223.3,0.54867495]
[1760123027800,0.14202951,1226.2,1223.4,0.54867495]
[1760123028001,0.14202951,1226.2,1223.5,0.54867495]
[1760123028205,0.14202951,1226.2,1223.1,0.60600974]
[1760123028408,0.14202951,1226.2,1223.2,0.54868833]
[1760123028706,0.14202951,1226.2,1223.3,0.54868833]
[1760123028905,0.14202951,1226.2,1223.4,0.54868833]
[1760123029109,0.14202951,1226.2,1223.5,0.54868833]
[1760123029417,0.14202951,1226.2,1223.0,0.60600974]
[1760123029606,0.14202951,1226.2,1223.1,0.54872794]
[1760123029806,0.14202951,1226.2,1223.2,0.54872794]
[1760123030005,0.14202951,1226.2,1223.3,0.54872794]
[1760123030205,0.14202951,1226.2,1223.4,0.54872794]
[1760123030406,0.14202951,1226.2,1222.8,0.60600974]
[1760123030605,0.14202951,1226.2,1222.9,0.54876683]
[1760123030810,0.14202951,1226.2,1223.0,0.54876683]
[1760123031010,0.14202951,1226.2,1222.8,0.60600974]
[1760123031011,0.14202951,1226.2,1223.1,0.54876683]
[1760123031211,0.14202951,1226.2,1223.2,0.54876683]
[1760123031410,0.14202951,1226.2,1223.3,0.54876683]
[1760123031608,0.14202951,1226.2,1223.4,0.54876683]
[1760123031807,0.14202951,1226.2,1223.5,0.54876683]
[1760123032010,0.14202951,1226.2,1222.8,0.60600974]
[1760123032207,0.14202951,1226.2,1222.9,0.54884504]
[1760123032412,0.14202951,1226.2,1223.5,0.60600974]
[1760123032612,0.14202951,1226.2,1223.6,0.54884504]
[1760123032908,0.14202951,1226.2,1223.7,0.54884504]
[1760123033109,0.14202951,1226.2,1223.8,0.54884504]
[1760123033310,0.14202951,1226.2,1223.9,0.54884504]
[1760123033512,0.14202951,1226.2,1224.0,0.54884504]
[1760123033711,0.14202951,1226.2,1224.1,0.54884504]
[1760123033914,0.14202951,1226.2,1224.2,0.54884504]
[1760123034212,0.14202951,1226.2,1224.3,0.54884504]
[1760123034508,0.14202951,1226.2,1223.8,0.60600974]
[1760123034713,0.14202951,1226.2,1223.9,0.54848541]
[1760123034910,0.14202951,1226.2,1224.0,0.54848541]
[1760123035113,0.14202951,1226.2,1224.1,0.54848541]
[1760123035409,0.14202951,1226.2,1224.2,0.54848541]
[1760123035710,0.14202951,1226.2,1223.6,0.60600974]
[1760123035916,0.14202951,1226.2,1223.7,0.54840521]
[1760123036115,0.14202951,1226.2,1223.8,0.54840521]
[1760123036317,0.14202951,1226.2,1223.9,0.54840521]
[1760123036510,0.14202951,1226.2,1224.0,0.54840521]
[1760123036715,0.14202951,1226.2,1224.1,0.54840521]
[1760123036914,0.14202951,1226.2,1224.2,0.54840521]
[1760123037112,0.14202951,1226.2,1223.6,0.60600974]
[1760123037314,0.14202951,1226.2,1223.7,0.54829848]
[1760123037615,0.14202951,1226.2,1223.8,0.54829848]
[1760123037814,0.14202951,1226.2,1223.9,0.54829848]
[1760123038012,0.14202951,1226.2,1224.0,0.54829848]
[1760123038213,0.14202951,1226.2,1224.1,0.54829848]
[1760123038413,0.14202951,1226.2,1223.6,0.60600974]
[1760123038612,0.14202951,1226.2,1223.7,0.54834836]
[1760123038811,0.14202951,1226.2,1223.8,0.54834836]
[1760123039014,0.14202951,1226.2,1223.9,0.54834836]
[1760123039211,0.14202951,1226.2,1224.0,0.54834836]
[1760123039411,0.14202951,1226.2,1223.4,0.60600974]
[1760123039712,0.14202951,1226.2,1223.5,0.54843012]
[1760123039915,0.14202951,1226.2,1223.6,0.54843012]
[1760123040115,0.14202951,1226.2,1223.7,0.54843012]
[1760123040318,0.14202951,1226.2,1223.8,0.54843012]
[1760123040613,0.14202951,1226.2,1223.4,0.60600974]
[1760123040813,0.14202951,1226.2,1223.5,0.54695868]
[1760123041014,0.14202951,1226.2,1223.6,0.54695868]
[1760123041212,0.14202951,1226.2,1223.7,0.54695868]
[1760123041412,0.14202951,1226.2,1223.8,0.54695868]
[1760123041613,0.14202951,1226.2,1223.4,0.60600974]
[1760123041815,0.14202951,1226.2,1223.5,0.54710446]
[1760123042115,0.14202951,1226.2,1223.6,0.54710446]
[1760123042309,0.14202951,1226.2,1223.7,0.54710446]
[1760123042510,0.14202951,1226.2,1223.8,0.54710446]
[1760123042818,0.14202951,1226.2,1223.4,0.60600974]
[1760123043015,0.14202951,1226.2,1223.5,0.54734664]
[1760123043215,0.14202951,1226.2,1223.6,0.54734664]
[1760123043413,0.14202951,1226.2,1223.7,0.54734664]
[1760123043612,0.14202951,1226.2,1223.8,0.54734664]
[1760123043812,0.14202951,1226.2,1223.3,0.60600974]
[1760123044116,0.14202951,1226.2,1223.4,0.5476162]
[1760123044316,0.14202951,1226.2,1223.5,0.5476162]
[1760123044516,0.14202951,1226.2,1223.6,0.5476162]
[1760123044713,0.14202951,1226.2,1223.7,0.5476162]
[1760123044917,0.14202951,1226.2,1223.8,0.5476162]
[1760123045118,0.14202951,1226.2,1223.3,0.60600974]
[1760123045316,0.14202951,1226.2,1223.4,0.54814432]
[1760123045517,0.14202951,1226.2,1223.5,0.54814432]
[1760123045713,0.14202951,1226.2,1223.6,0.54814432]
[1760123046015,0.14202951,1226.2,1223.7,0.54814432]
[1760123046218,0.14202951,1226.2,1223.8,0.54814432]
[1760123046514,0.14202951,1226.2,1223.3,0.60600974]
[1760123046814,2.00513214,1226.1,1223.4,0.54827583]
[1760123047013,2.00513214,1226.1,1223.5,0.54827583]
[1760123047213,2.00513214,1226.1,1223.6,0.54827583]
[1760123047417,2.00513214,1225.9,1223.2,0.60600974]
[1760123047615,2.00513214,1225.9,1223.3,0.54841891]
[1760123047815,2.14716165,1226.2,1223.4,0.54841891]
[1760123048016,2.807185,1226.1,1223.1,0.60600974]
[1760123048217,2.807185,1226.1,1223.2,0.54845791]
[1760123048418,2.807185,1226.1,1223.3,0.54845791]
[1760123048613,2.807185,1226.1,1223.4,0.54845791]
[1760123048917,2.807185,1226.1,1223.5,0.54845791]
[1760123049118,0.14202951,1226.2,1223.6,0.54849902]
[1760123049317,0.14202951,1226.2,1223.7,0.54849902]
[1760123049514,0.14202951,1226.2,1223.1,0.60600974]
[1760123049715,0.14202951,1226.2,1223.2,0.54849614]
[1760123049919,0.14202951,1226.2,1223.3,0.54849614]
[1760123050118,0.14202951,1226.2,1223.4,0.54849614]
[1760123050320,0.14202951,1226.2,1223.5,0.54849614]
[1760123050517,0.14202951,1226.2,1223.6,0.54849614]
[1760123050816,0.14202951,1226.2,1223.7,0.54849614]
[1760123051017,0.14202951,1226.2,1223.2,0.60600974]
[1760123051216,0.14202951,1226.2,1223.3,0.54854589]
[1760123051421,0.14202951,1226.2,1223.4,0.54854589]
[1760123051622,0.14202951,1226.2,1223.5,0.54854589]
[1760123051819,0.14202951,1226.2,1223.6,0.54854589]
[1760123052017,0.14202951,1226.2,1223.7,0.54854589]
[1760123052218,0.14202951,1226.2,1223.8,0.54854589]
[1760123052518,0.14202951,1226.2,1223.2,0.60600974]
[1760123052718,0.14202951,1226.2,1223.3,0.54859578]
[1760123052923,0.14202951,1226.2,1223.4,0.54859578]
[1760123053121,0.14202951,1226.2,1223.5,0.54859578]
[1760123053323,0.14202951,1226.2,1223.6,0.54859578]
[1760123053522,0.14202951,1226.2,1223.1,0.60600974]
[1760123053719,0.14202951,1226.2,1223.2,0.54864254]
[1760123053925,2.14716165,1226.2,1223.3,0.54864254]
[1760123054124,2.14716165,1226.2,1223.4,0.54864254]
[1760123054324,2.14716165,1226.2,1223.5,0.54864254]
[1760123054523,2.14716165,1226.2,1223.1,0.60600974]
[1760123054725,2.14716165,1226.2,1223.2,0.54716206]
[1760123054925,2.00513214,1225.8,1223.3,0.54716206]
[1760123055223,2.00513214,1225.8,1223.4,0.54716206]
[1760123055526,2.00513214,1225.8,1223.1,0.60600974]
[1760123055821,2.00513214,1225.8,1223.2,0.54715779]
[1760123056021,2.00513214,1226.0,1223.3,0.54715779]
[1760123056320,2.00513214,1226.0,1222.8,0.60600974]
[1760123056525,2.00513214,1225.7,1222.9,0.54718861]
[1760123056720,2.00513214,1225.7,1223.0,0.54718861]
[1760123056925,2.00513214,1225.7,1223.1,0.54718861]
[1760123057122,2.00513214,1225.7,1223.2,0.54718861]
[1760123057423,2.00513214,1225.7,1222.7,0.60600974]
[1760123057624,2.00513214,1225.7,1222.8,0.5470988]
[1760123057826,2.00513214,1225.7,1222.9,0.5470988]
[1760123058122,2.00513214,1225.7,1223.0,0.5470988]
[1760123058326,2.00513214,1225.7,1223.1,0.5470988]
[1760123058528,2.00513214,1225.7,1222.7,0.60600974]
[1760123058725,2.00513214,1225.7,1222.8,0.5470168]
[1760123059023,2.00513214,1225.7,1222.9,0.5470168]
[1760123059223,2.00513214,1225.7,1223.0,0.5470168]
[1760123059525,2.00513214,1225.7,1223.1,0.5470168]
[1760123059724,2.00513214,1225.7,1222.7,0.60600974]
[1760123059928,2.00513214,1225.7,1222.8,0.5469442]
[1760123060228,2.00513214,1225.6,1222.9,0.5469442]
[1760123060529,2.00513214,1225.6,1223.0,0.5469442]
[1760123060828,2.00513214,1225.5,1223.1,0.5469442]
[1760123061025,2.00513214,1225.5,1222.8,0.60600974]
[1760123061224,2.00513214,1225.5,1222.9,0.54684786]
[1760123061429,0.14202951,1226.2,1222.5,0.94963581]
[1760123061430,0.14202951,1226.2,1223.2,0.60600974]
[1760123061629,0.14202951,1226.2,1223.3,0.54684786]
[1760123061928,0.14202951,1226.2,1223.4,0.54684786]
[1760123062126,0.14202951,1226.2,1223.5,0.54684786]
[1760123062429,0.14202951,1226.2,1223.6,0.54684786]
[1760123062629,0.14202951,1226.2,1223.7,0.54684786]
[1760123062826,0.14202951,1226.2,1223.2,0.60600974]
[1760123063031,0.14202951,1226.2,1223.3,0.54664257]
[1760123063231,0.14202951,1226.2,1223.4,0.54664257]
[1760123063430,0.14202951,1226.2,1223.5,0.54664257]
[1760123063628,0.14202951,1226.2,1223.6,0.54664257]
[1760123063832,0.14202951,1226.2,1223.7,0.54664257]
[1760123064028,0.14202951,1226.2,1223.2,0.60600974]
[1760123064230,0.14202951,1226.2,1223.3,0.54666215]
[1760123064434,0.14202951,1226.2,1223.4,0.54666215]
[1760123064633,0.14202951,1226.2,1223.5,0.54666215]
[1760123064933,0.14202951,1226.2,1223.6,0.54666215]
[1760123065131,0.14202951,1226.2,1223.7,0.54666215]
[1760123065330,0.14202951,1226.2,1223.2,0.60600974]
[1760123065533,0.14202951,1226.2,1223.3,0.54663108]
[1760123065730,0.14202951,1226.2,1223.4,0.54663108]
[1760123065930,0.14202951,1226.2,1223.5,0.54663108]
[1760123066235,2.14716165,1226.2,1223.6,0.54663108]
[1760123066531,2.14716165,1226.2,1223.3,0.60600974]
[1760123066833,2.00513214,1226.1,1223.4,0.54663814]
[1760123067033,2.00513214,1226.1,1223.5,0.54663814]
[1760123067231,2.00513214,1226.1,1223.1,0.60600974]
[1760123067429,2.00513214,1226.1,1223.2,0.54664829]
[1760123067729,2.00513214,1225.9,1223.3,0.54664829]
[1760123067928,2.00513214,1225.9,1223.4,0.54664829]
[1760123068132,2.00513214,1225.9,1223.5,0.54664829]
[1760123068333,2.00513214,1225.9,1223.1,0.60600974]
[1760123068531,2.00513214,1225.9,1223.2,0.54668125]
[1760123068731,0.14202951,1226.2,1223.3,0.54668125]
[1760123068936,0.14202951,1226.2,1223.4,0.54668125]
[1760123069230,2.14716165,1226.2,1223.0,0.60600974]
[1760123069434,2.14716165,1226.2,1223.1,0.54670589]
[1760123069633,2.14716165,1226.2,1223.2,0.54670589]
[1760123069832,2.14716165,1226.2,1223.3,0.54670589]
[1760123070035,2.14716165,1226.2,1223.4,0.54670589]
[1760123070234,2.14716165,1226.2,1223.0,0.60600974]
[1760123070533,2.14716165,1226.2,1223.1,0.5467199]
[1760123070733,2.14716165,1226.2,1223.2,0.5467199]
[1760123070936,2.14716165,1226.2,1223.3,0.5467199]
[1760123071136,2.14716165,1226.2,1223.4,0.5467199]
[1760123071338,2.14716165,1226.2,1223.0,0.60600974]
[1760123071541,2.14716165,1226.2,1223.1,0.54673852]
[1760123071841,2.14716165,1226.2,1223.2,0.54673852]
[1760123072039,2.14716165,1226.2,1223.3,0.54673852]
[1760123072238,2.14716165,1226.2,1223.4,0.54673852]
[1760123072438,2.14716165,1226.2,1223.0,0.60600974]
[1760123072638,2.14716165,1226.2,1223.1,0.5467532]
[1760123072842,2.14716165,1226.2,1223.2,0.5467532]
[1760123073142,2.00513214,1226.1,1223.3,0.5467532]
[1760123073438,2.00513214,1225.7,1223.0,0.60600974]
[1760123073643,2.00513214,1225.7,1223.1,0.54725227]
[1760123073844,2.00513214,1225.7,1223.2,0.54725227]
[1760123074045,2.00513214,1225.6,1222.9,0.60600974]
[1760123074343,2.00513214,1225.6,1223.0,0.54726338]
[1760123074540,2.807185,1226.0,1223.1,0.54726338]
[1760123074842,2.807185,1226.0,1223.2,0.54726338]
[1760123075040,0.14202951,1226.2,1223.3,0.54726338]
[1760123075343,0.14202951,1226.2,1223.4,0.54726338]
[1760123075543,0.14202951,1226.2,1223.5,0.54726338]
[1760123075744,0.14202951,1226.2,1222.9,0.60600974]
[1760123076043,0.14202951,1226.2,1223.0,0.54717983]
[1760123076243,0.14202951,1226.2,1223.1,0.54717983]
[1760123076443,0.14202951,1226.2,1223.2,0.54717983]
[1760123076641,0.14202951,1226.2,1223.3,0.54717983]
[1760123076845,0.14202951,1226.2,1223.4,0.54717983]
[1760123077042,0.14202951,1226.2,1223.5,0.54717983]
[1760123077342,0.14202951,1226.2,1223.6,0.54718291]
[1760123077546,0.14202951,1226.2,1223.0,0.60600974]
[1760123077743,0.14202951,1226.2,1223.1,0.54718264]
[1760123077947,0.14202951,1226.2,1223.2,0.54718264]
[1760123078144,0.14202951,1226.2,1223.3,0.54718264]
[1760123078348,0.14202951,1226.2,1223.4,0.54718264]
[1760123078544,0.14202951,1226.2,1223.5,0.54718264]
[1760123078845,0.14202951,1226.2,1222.9,0.60600974]
[1760123079049,0.14202951,1226.2,1223.0,0.54723768]
[1760123079344,0.14202951,1226.2,1222.8,0.60600974]
[1760123079345,0.14202951,1226.2,1223.1,0.54723768]
[1760123079549,0.14202951,1226.2,1222.8,0.60600974]
[1760123079550,0.14202951,1226.2,1223.2,0.54723768]
[1760123079745,0.14202951,1226.2,1223.3,0.54723768]
[1760123079947,0.14202951,1226.2,1223.4,0.54723768]
[1760123080247,0.14202951,1226.2,1223.5,0.54723768]
[1760123080451,0.14202951,1226.2,1223.6,0.5471957]
[1760123080651,0.14202951,1226.2,1223.0,0.60600974]
[1760123080853,0.14202951,1226.2,1223.1,1.15320116]
[1760123081049,2.00513214,1226.1,1223.5,0.60600974]
[1760123081249,2.00513214,1226.1,1223.6,0.54719142]
[1760123081454,0.14202951,1226.2,1223.7,0.54719142]
[1760123081748,0.14202951,1226.2,1223.8,0.54719142]
[1760123081952,0.14202951,1226.2,1223.5,0.60600974]
[1760123082252,0.14202951,1226.2,1223.6,0.54707192]
[1760123082453,0.14202951,1226.2,1223.7,0.54707192]
[1760123082654,0.14202951,1226.2,1223.8,0.54707192]
[1760123082950,0.14202951,1226.2,1223.5,0.60600974]
[1760123083150,0.14202951,1226.2,1223.6,0.54705664]
[1760123083454,0.14202951,1226.2,1223.7,0.54705664]
[1760123083655,0.14202951,1226.2,1223.8,0.54705664]
[1760123083853,0.14202951,1226.2,1223.9,0.54705664]
[1760123084052,0.14202951,1226.2,1224.0,0.54705664]
[1760123084256,0.14202951,1226.2,1224.1,0.54705664]
[1760123084455,0.14202951,1226.2,1224.2,0.54705664]
[1760123084658,0.14202951,1226.2,1223.7,0.60600974]
[1760123084857,0.14202951,1226.2,1223.8,0.54683629]
[1760123085153,0.14202951,1226.2,1223.9,0.54683629]
[1760123085355,0.14202951,1226.2,1224.0,0.54683629]
[1760123085553,0.14202951,1226.2,1224.1,0.54683629]
[1760123085754,0.14202951,1226.2,1224.2,0.54683629]
[1760123085957,0.14202951,1226.2,1223.7,0.60600974]
[1760123086160,0.14202951,1226.2,1223.8,0.54673787]
[1760123086355,0.14202951,1226.2,1223.9,0.54673787]
[1760123086560,0.14202951,1226.2,1224.0,0.54673787]
[1760123086754,0.14202951,1226.2,1224.1,0.54673787]
[1760123086961,0.14202951,1226.2,1224.2,0.54673787]
[1760123087164,0.14202951,1226.2,1224.3,0.54673787]
[1760123087362,0.14202951,1226.2,1223.3,0.8075515]
[1760123087363,0.14202951,1226.2,1223.6,0.60600974]
[1760123087664,0.14202951,1226.2,1223.7,0.5465267]
[1760123087861,0.14202951,1226.2,1223.8,0.5465267]
[1760123088067,0.14202951,1226.2,1223.9,0.5465267]
[1760123088265,0.14202951,1226.2,1224.0,0.5465267]
[1760123088462,0.14202951,1226.2,1222.6,0.60600974]
[1760123088666,0.14202951,1226.2,1222.7,0.54674048]
[1760123088967,0.14202951,1226.2,1222.8,0.54674048]
[1760123089167,0.14202951,1226.2,1222.9,0.54674048]
[1760123089365,0.14202951,1226.2,1223.0,0.54674048]
[1760123089663,0.14202951,1226.2,1223.1,0.54674048]
[1760123089962,0.14202951,1226.2,1223.2,0.54674048]
[1760123090167,0.14202951,1226.2,1222.5,0.74809405]
[1760123090365,0.14202951,1226.2,1222.6,0.54338727]
[1760123090665,0.14202951,1226.2,1222.7,0.54338727]
[1760123090868,0.14202951,1226.2,1222.8,0.54338727]
[1760123091166,0.14202951,1226.2,1222.9,0.54338727]
[1760123091368,0.14202951,1226.2,1223.0,0.54338727]
[1760123091569,0.14202951,1226.2,1223.1,0.54338727]
[1760123091770,0.14202951,1226.2,1223.2,0.54338727]
[1760123091970,0.14202951,1226.2,1223.3,0.54338727]
[1760123092171,0.14202951,1226.2,1222.6,0.60600974]
[1760123092472,0.14202951,1226.2,1222.8,0.60600974]
[1760123092666,0.14202951,1226.2,1222.9,0.54324277]
[1760123092867,0.14202951,1226.2,1223.0,0.54324277]
[1760123093067,0.14202951,1226.2,1223.1,0.54324277]
[1760123093267,0.14202951,1226.2,1223.2,0.54324277]
[1760123093470,0.14202951,1226.2,1223.3,0.54324277]
[1760123093668,0.14202951,1226.2,1223.4,0.54324277]
[1760123093971,0.14202951,1226.2,1222.8,0.60600974]
[1760123094168,0.14202951,1226.2,1222.9,0.54327306]
[1760123094372,0.14202951,1226.2,1223.0,0.54327306]
[1760123094569,0.14202951,1226.2,1223.1,0.54327306]
[1760123094772,0.14202951,1226.2,1223.2,0.54327306]
[1760123094968,0.14202951,1226.2,1223.3,0.54327306]
[1760123095172,0.14202951,1226.2,1223.4,0.54327306]
[1760123095468,0.14202951,1226.2,1222.8,0.60600974]
[1760123095672,0.14202951,1226.2,1222.9,0.54355776]
[1760123095873,0.14202951,1226.2,1223.0,0.54355776]
[1760123096073,0.14202951,1226.2,1223.1,0.54355776]
[1760123096374,0.14202951,1226.2,1223.2,0.54355776]
[1760123096574,0.14202951,1226.2,1223.3,0.54355776]
[1760123096772,0.14202951,1226.2,1223.4,0.54355776]
[1760123097073,0.14202951,1226.2,1222.8,0.60600974]
[1760123097269,0.14202951,1226.2,1222.9,0.54378989]
[1760123097472,0.14202951,1226.2,1223.0,0.54378989]
[1760123097674,0.14202951,1226.2,1223.1,0.54378989]
[1760123097974,0.14202951,1226.2,1223.2,0.54378989]
[1760123098171,0.14202951,1226.2,1223.3,0.54378989]
[1760123098376,0.14202951,1226.2,1223.4,0.54378989]
[1760123098673,0.14202951,1226.2,1222.7,0.60600974]
[1760123098877,0.14202951,1226.2,1222.8,1.14989365]
[1760123099075,0.14202951,1226.2,1222.9,0.54388391]
[1760123099276,0.14202951,1226.2,1223.0,0.54388391]
[1760123099474,0.14202951,1226.2,1223.1,0.54388391]
[1760123099672,0.14202951,1226.2,1223.2,0.54388391]
[1760123099872,0.14202951,1226.2,1223.3,0.54388391]
[1760123100076,0.14202951,1226.2,1222.8,0.60600974]
[1760123100284,0.14202951,1226.2,1222.9,0.54393433]
[1760123100578,0.14202951,1226.2,1223.0,0.54393433]
[1760123100771,0.14202951,1226.2,1223.1,0.54393433]
[1760123100976,0.14202951,1226.2,1223.2,0.54393433]
[1760123101173,0.14202951,1226.2,1223.3,0.54393433]
[1760123101375,0.14202951,1226.2,1222.8,0.60600974]
[1760123101575,0.14202951,1226.2,1222.9,0.54393902]
[1760123101778,0.14202951,1226.2,1223.0,0.54393902]
[1760123102078,0.14202951,1226.2,1223.1,0.54393902]
[1760123102278,0.14202951,1226.2,1223.2,0.54393902]
[1760123102476,0.14202951,1226.2,1223.3,0.54393902]
[1760123102676,0.14202951,1226.2,1222.8,0.60600974]
[1760123102878,0.14202951,1226.2,1222.9,0.54444569]
[1760123103078,0.14202951,1226.2,1223.0,0.54444569]
[1760123103276,0.14202951,1226.2,1223.1,0.54444569]
[1760123103475,0.14202951,1226.2,1223.2,0.54444569]
[1760123103778,0.14202951,1226.2,1222.7,0.60600974]
[1760123103982,2.00513214,1225.4,1222.8,0.54452649]
[1760123104181,2.00513214,1225.4,1222.9,0.54452649]
[1760123104379,2.00513214,1225.5,1223.0,0.54452649]
[1760123104577,2.00513214,1225.5,1222.6,0.60600974]